bitfinex-derivatives/quotes_SOLF0:USTF0_20250101
["timestamp","ask_amount","ask_price","bid_price","bid_amount"]
[1735773089671,8.1124491,194.91,194.84,11.0124491]
[1735773089867,8.1124491,194.89,194.84,2.9]
[1735773090163,8.1124491,194.89,194.85,4.94258579]
[1735773090467,8.1124491,194.89,194.84,2.9]
[1735773091072,8.1124491,194.89,194.87,2.571]
[1735773091468,8.1124491,194.9,194.87,2.571]
[1735773097974,8.1124491,194.88,194.83,2.5715]
[1735773098171,8.1124491,194.86,194.83,2.5715]
[1735773113890,2.5713,194.85,194.81,5.4717]
[1735773114087,2.5713,194.85,194.82,4.93354089]
[1735773114382,2.5713,194.85,194.81,5.4717]
[1735773114587,8.1124491,194.84,194.78,15.21505908]
[1735773114889,10.6838491,194.84,194.8,2.5719]
[1735773115890,8.1124491,194.82,194.77,10.00260998]
[1735773116088,8.1124491,194.8,194.78,8.98529596]
[1735773116286,8.1124491,194.8,194.78,4.93442261]
[1735773116480,8.1124491,194.8,194.76,9.67510998]
[1735773116681,8.1124491,194.8,194.77,4.93620477]
[1735773117088,8.1124491,194.8,194.76,2.5725]
[1735773118188,8.1124491,194.8,194.75,2.9]
[1735773118378,8.1124491,194.8,194.77,2.5723]
[1735773121189,8.1124491,194.8,194.76,2.5725]
[1735773121579,8.1124491,194.8,194.75,2.9]
[1735773121985,8.1124491,194.8,194.76,4.93152573]
[1735773122181,8.1124491,194.8,194.75,2.9]
[1735773122688,8.1124491,194.8,194.77,2.5723]
[1735773123991,8.1124491,194.82,194.79,2.5721]
[1735773124888,3.0644,194.88,194.77,8.1124491]
[1735773125085,10.6837491,194.85,194.81,2.5718]
[1735773125887,8.1124491,194.85,194.79,8.1124491]
[1735773126088,2.5714,194.84,194.8,2.5719]
[1735773127998,2.5714,194.84,194.79,8.1124491]
[1735773128198,2.5714,194.84,194.81,2.5718]
[1735773129200,10.6840491,194.83,194.79,2.5721]
[1735773129391,8.1124491,194.81,194.79,2.5721]
[1735773129797,8.1124491,194.81,194.78,2.9]
[1735773132006,8.1124491,194.81,194.77,2.5723]
[1735773132302,2.5717,194.82,194.78,2.5722]
[1735773132495,10.6839491,194.84,194.77,8.1124491]
[1735773132695,8.1124491,194.84,194.77,8.1124491]
[1735773133604,8.1124491,194.84,194.78,4.92341127]
[1735773133809,8.1124491,194.84,194.77,8.1124491]
[1735773134511,8.1124491,194.84,194.81,2.5718]
[1735773134807,8.1124491,194.84,194.77,8.1124491]
[1735773135199,8.1124491,194.84,194.8,2.5718]
[1735773135501,8.1124491,194.84,194.77,8.1124491]
[1735773136009,8.1124491,194.84,194.78,4.92435661]
[1735773136508,8.1124491,194.84,194.81,2.5718]
[1735773137009,8.1124491,194.84,194.82,2.5717]
[1735773137804,8.1124491,194.86,194.8,2.9]
[1735773139211,8.1124491,194.88,194.85,2.5712]
[1735773142613,8.1124491,194.9,194.87,2.571]
[1735773146517,2.5706,194.91,194.87,2.571]
[1735773146715,8.1124491,194.89,194.87,2.571]
[1735773147614,8.1124491,194.9,194.85,2.9]
[1735773148313,58.23551568,194.92,194.86,2.5711]
[1735773148508,66.34796478,194.92,194.85,11.0124491]
[1735773148818,66.34796478,194.92,194.86,4.91911544]
[1735773149208,66.34796478,194.92,194.85,11.0124491]
[1735773149413,8.1124491,194.92,194.85,11.0124491]
[1735773149816,8.1124491,194.92,194.86,4.91675687]
[1735773150320,8.1124491,194.92,194.85,11.0124491]
[1735773150514,8.1124491,194.92,194.91,2.5705]
[1735773151218,8.1124491,194.92,194.87,2.5709]
[1735773151416,8.1124491,194.89,194.87,2.5709]
[1735773151617,8.1124491,194.89,194.85,2.9]
[1735773152313,8.1124491,194.89,194.86,2.5711]
[1735773152818,8.1124491,194.89,194.85,2.9]
[1735773153221,2.9,194.95,194.85,2.9]
[1735773153520,8.1124491,194.91,194.89,2.5707]
[1735773154918,2.5702,194.93,194.89,2.5707]
[1735773155122,8.1124491,194.91,194.89,2.5707]
[1735773156023,8.1124491,194.91,194.85,2.9]
[1735773156322,8.1124491,194.89,194.85,2.9]
[1735773156514,8.1124491,194.87,194.84,2.9]
[1735773156918,2.9,194.93,194.84,2.9]
[1735773157118,10.6836491,194.86,194.81,2.5717]
[1735773157322,8.1124491,194.84,194.8,2.9]
[1735773157917,8.1124491,194.84,194.81,2.5717]
[1735773159922,8.1124491,194.84,194.77,8.1124491]
[1735773160127,8.1124491,194.82,194.79,2.572]
[1735773161223,8.1124491,194.82,194.78,2.9]
[1735773161424,8.1124491,194.82,194.81,2.5718]
[1735773162322,8.1124491,194.82,194.78,2.9]
[1735773162520,8.1124491,194.82,194.79,2.572]
[1735773163824,8.1124491,194.82,194.78,2.9]
[1735773164025,8.1124491,194.82,194.81,2.5718]
[1735773164424,8.1124491,194.84,194.81,2.5718]
[1735773166028,2.571,194.88,194.83,2.5715]
[1735773166232,8.1124491,194.85,194.83,2.5715]
[1735773167129,8.1124491,194.85,194.82,2.5717]
[1735773169130,8.1124491,194.85,194.81,2.5718]
[1735773170629,8.1124491,194.83,194.81,2.5718]
[1735773170831,8.1124491,194.83,194.79,2.9]
[1735773171031,8.1124491,194.81,194.79,2.9]
[1735773171527,8.1124491,194.81,194.78,2.5722]
[1735773172732,8.1124491,194.81,194.79,2.5721]
[1735773175731,8.1124491,194.81,194.78,2.5722]
[1735773175923,8.1124491,194.81,194.76,2.9]
[1735773176227,8.1124491,194.81,194.73,6.84850381]
[1735773176428,8.1124491,194.79,194.74,4.91950776]
[1735773176728,8.1124491,194.79,194.73,6.84850381]
[1735773177535,10.6846491,194.79,194.75,2.5726]
[1735773179433,8.1124491,194.79,194.75,2.5726]
[1735773181232,8.1124491,194.77,194.71,2.9]
[1735773181734,2.5725,194.76,194.72,2.5729]
[1735773182436,10.6848491,194.77,194.72,2.5729]
[1735773183034,10.6848491,194.77,194.73,2.5728]
[1735773186432,8.1124491,194.79,194.73,8.1124491]
[1735773186640,8.1124491,194.81,194.73,8.1124491]
[1735773186828,8.1124491,194.81,194.75,8.1124491]
[1735773187937,8.1124491,194.81,194.77,2.5722]
[1735773188736,10.6842491,194.81,194.77,2.5722]
[1735773190233,8.1124491,194.81,194.78,2.5722]
[1735773190836,2.5717,194.82,194.78,2.5722]
[1735773191031,8.1124491,194.81,194.78,2.5722]
[1735773191637,8.1124491,194.79,194.73,8.1124491]
[1735773191837,8.1124491,194.77,194.71,11.0124491]
[1735773193437,10.6848491,194.77,194.73,2.5728]
[1735773193742,8.1124491,194.77,194.71,11.0124491]
[1735773194041,8.1124491,194.77,194.74,2.5727]
[1735773196344,8.1124491,194.77,194.71,11.0124491]
[1735773196642,10.6848491,194.77,194.73,2.5728]
[1735773197942,10.6851491,194.75,194.7,2.5732]
[1735773198140,8.1124491,194.75,194.69,8.1124491]
[1735773199042,8.1124491,194.75,194.72,2.5729]
[1735773200237,8.1124491,194.77,194.71,8.1124491]
[1735773200646,10.6846491,194.79,194.71,8.1124491]
[1735773202247,8.1124491,194.77,194.71,8.1124491]
[1735773202642,10.6847491,194.77,194.73,2.5728]
[1735773202946,8.1124491,194.75,194.69,8.1124491]
[1735773203243,8.1124491,194.73,194.68,7.10260998]
[1735773203437,8.1124491,194.73,194.69,4.92062988]
[1735773203744,8.1124491,194.73,194.68,7.10260998]
[1735773203938,10.6854491,194.73,194.69,2.5734]
[1735773204136,8.1124491,194.71,194.65,39.21106813]
[1735773204340,8.1124491,194.71,194.66,4.92217389]
[1735773204746,8.1124491,194.71,194.67,4.92217389]
[1735773204946,8.1124491,194.71,194.64,10.00260998]
[1735773205151,8.1124491,194.71,194.65,4.04055153]
[1735773205446,10.6856491,194.71,194.67,2.5735]
[1735773205744,8.1124491,194.71,194.64,10.00260998]
[1735773205937,8.1124491,194.71,194.64,2.9]
[1735773206141,8.1124491,194.71,194.68,2.5735]
[1735773207148,8.1124491,194.73,194.7,2.5733]
[1735773207449,8.1124491,194.73,194.66,2.9]
[1735773207746,8.1124491,194.73,194.7,2.5733]
[1735773209043,201.05248744,194.92,194.71,2.9]
[1735773209248,7.5998,194.88,194.71,11.0124491]
[1735773209443,8.1124491,194.77,194.71,11.0124491]
[1735773209638,8.1124491,194.75,194.71,2.9]
[1735773209949,8.1124491,194.73,194.68,2.9]
[1735773210150,8.1124491,194.71,194.68,5.4735]
[1735773210441,4.6998,194.79,194.65,31.09861903]
[1735773210650,8.1124491,194.7,194.65,31.09861903]
[1735773210845,8.1124491,194.7,194.65,2.9]
[1735773211554,8.1124491,194.7,194.67,2.5736]
[1735773212447,10.6857491,194.7,194.62,9.6740491]
[1735773212647,8.1124491,194.68,194.63,4.92085451]
[1735773212843,8.1124491,194.68,194.63,7.82085451]
[1735773213044,8.1124491,194.66,194.64,2.574]
[1735773213252,8.1124491,194.66,194.61,7.10260998]
[1735773213451,8.1124491,194.64,194.61,7.10260998]
[1735773213652,8.1124491,194.64,194.6,2.9]
[1735773214151,8.1124491,194.64,194.61,2.5745]
[1735773215549,10.6865491,194.64,194.58,2.5747]
[1735773215755,8.1124491,194.62,194.58,5.4747]
[1735773217447,8.1124491,194.62,194.58,2.9]
[1735773217649,8.1124491,194.62,194.59,2.5747]
[1735773219053,8.1124491,194.62,194.55,8.1124491]
[1735773219359,8.1124491,194.6,194.57,2.5749]
[1735773219558,8.1124491,194.6,194.56,2.9]
[1735773219956,8.1124491,194.58,194.55,5.4751]
[1735773222459,8.1124491,194.58,194.55,2.5751]
[1735773222654,8.1124491,194.56,194.55,2.5751]
[1735773222859,8.1124491,194.56,194.5,8.1124491]
[1735773222860,8.1124491,194.56,194.5,2.5759]
[1735773223163,8.1124491,194.54,194.51,2.9]
[1735773223760,8.1124491,194.56,194.51,2.9]
[1735773224466,2.5744,194.62,194.51,11.0124491]
[1735773224663,2.9,194.64,194.53,8.1124491]
[1735773224860,8.1124491,194.6,194.53,8.1124491]
[1735773225164,1.6047,194.68,194.53,8.1124491]
[1735773225360,8.1124491,194.61,194.53,8.1124491]
[1735773226362,8.1124491,194.61,194.59,2.5747]
[1735773226666,8.1124491,194.62,194.57,2.9]
[1735773226867,8.1124491,194.62,194.57,11.0124491]
[1735773227066,8.1124491,194.62,194.6,2.5745]
[1735773228968,8.1124491,194.62,194.58,2.5747]
[1735773230673,8.1124491,194.62,194.59,2.5747]
[1735773230972,8.1124491,194.64,194.57,2.9]
[1735773231165,8.1124491,194.64,194.57,11.0124491]
[1735773232571,8.1124491,194.64,194.61,2.5744]
[1735773233464,8.1124491,194.64,194.59,2.5747]
[1735773233671,8.1124491,194.62,194.57,2.9]
[1735773234369,8.1124491,194.62,194.59,2.5747]
[1735773234573,8.1124491,194.6,194.57,2.9]
[1735773235971,1.6047,194.68,194.57,2.9]
[1735773236173,8.1124491,194.62,194.57,2.9]
[1735773236376,8.1124491,194.62,194.59,2.5746]
[1735773238876,8.1124491,194.62,194.6,2.5745]
[1735773239074,8.1124491,194.62,194.57,2.9]
[1735773239378,8.1124491,194.65,194.58,8.1124491]
[1735773239579,8.1124491,194.65,194.6,2.5746]
[1735773239879,8.1124491,194.65,194.58,8.1124491]
[1735773240672,8.1124491,194.63,194.61,2.5743]
[1735773242579,8.1124491,194.63,194.6,2.5746]
[1735773242775,8.1124491,194.61,194.57,2.9]
[1735773242974,8.1124491,194.61,194.54,8.1124491]
[1735773243181,8.1124491,194.61,194.57,5.4749]
[1735773243878,8.1124491,194.61,194.57,2.9]
[1735773244078,8.1124491,194.61,194.58,2.5748]
[1735773246485,8.1124491,194.61,194.59,2.5747]
[1735773246673,8.1124491,194.63,194.57,2.9]
[1735773248178,8.1124491,194.63,194.61,2.5744]
[1735773248785,8.1124491,194.65,194.58,8.1124491]
[1735773249084,8.1124491,194.65,194.63,2.5742]
[1735773254081,8.1124491,194.65,194.57,2.9]
[1735773254389,10.6864491,194.65,194.61,2.5744]
[1735773256383,10.6864491,194.65,194.62,2.5743]
[1735773257485,10.6866491,194.63,194.58,2.5747]
[1735773257684,10.6866491,194.63,194.57,2.9]
[1735773258191,8.1124491,194.63,194.58,4.93469585]
[1735773258392,2.5743,194.62,194.59,2.5747]
[1735773258787,8.1124491,194.61,194.58,2.5748]
[1735773258990,10.6869491,194.61,194.58,2.5748]
[1735773259687,8.1124491,194.61,194.58,2.5748]
[1735773260590,8.1124491,194.63,194.57,11.0124491]
[1735773260799,8.1124491,194.65,194.57,11.0124491]
[1735773261094,8.1124491,194.65,194.58,8.98758525]
[1735773261393,8.1124491,194.65,194.57,11.0124491]
[1735773261394,8.1124491,194.65,194.59,4.93571572]
[1735773261589,8.1124491,194.65,194.57,11.0124491]
[1735773261795,8.1124491,194.65,194.58,4.05156937]
[1735773261993,8.1124491,194.65,194.6,4.9354249]
[1735773262190,8.1124491,194.65,194.61,2.5744]
[1735773263092,8.1124491,194.65,194.57,11.0124491]
[1735773263293,8.1124491,194.65,194.63,2.5741]
[1735773263795,1.6047,194.68,194.63,2.5741]
[1735773263996,8.1124491,194.65,194.63,2.5741]
[1735773264197,1.6047,194.68,194.63,2.5741]
[1735773264390,8.1124491,194.65,194.63,2.5741]
[1735773264591,3.0662,194.69,194.62,2.9]
[1735773264797,8.1124491,194.68,194.62,2.9]
[1735773265590,8.1124491,194.68,194.65,2.5739]
[1735773269404,8.1124491,194.68,194.62,2.9]
[1735773269704,8.1124491,194.68,194.66,2.5738]
[1735773270907,8.1124491,194.68,194.62,2.9]
[1735773271809,8.1124491,194.68,194.65,2.5738]
[1735773272507,8.1124491,194.68,194.62,2.9]
[1735773272712,8.1124491,194.71,194.63,13.04337671]
[1735773273212,8.1124491,194.71,194.67,2.5735]
[1735773273410,8.1124491,194.71,194.67,5.4735]
[1735773276011,8.1124491,194.71,194.68,2.5735]
[1735773277910,2.5728,194.74,194.69,2.5733]
[1735773278119,8.1124491,194.72,194.69,2.5733]
[1735773278309,8.1124491,194.72,194.67,2.9]
[1735773278510,10.6854491,194.72,194.68,2.5734]
[1735773278712,8.1124491,194.72,194.67,2.9]
[1735773279610,8.1124491,194.72,194.69,2.5734]
[1735773280615,10.6854491,194.72,194.68,2.5735]
[1735773281815,2.5735,194.69,194.67,2.9]
[1735773282014,8.1124491,194.68,194.65,2.5739]
[1735773284120,10.6859491,194.68,194.65,2.5739]
[1735773284317,10.6859491,194.68,194.63,5.4741]
[1735773285615,10.6859491,194.68,194.64,2.5741]
[1735773286615,8.1124491,194.66,194.63,2.9]
[1735773287322,8.1124491,194.66,194.62,2.5742]
[1735773288422,2.5739,194.65,194.62,2.5742]
[1735773288822,8.1124491,194.66,194.62,2.5742]
[1735773289717,8.1124491,194.66,194.61,2.9]
[1735773289924,8.1124491,194.66,194.63,2.5741]
[1735773290518,8.1124491,194.66,194.61,2.9]
[1735773290724,3.0134,194.76,194.62,13.03902125]
[1735773290925,5.9134,194.76,194.63,4.92657215]
[1735773291227,8.1124491,194.7,194.66,2.5737]
[1735773291426,8.1124491,194.7,194.66,5.4737]
[1735773292531,10.6857491,194.7,194.66,5.4737]
[1735773293130,10.6857491,194.7,194.66,2.5737]
[1735773293530,8.1124491,194.7,194.65,2.9]
[1735773293831,2.5734,194.69,194.65,5.4739]
[1735773300236,8.1124491,194.68,194.65,5.4739]
[1735773300431,10.6862491,194.66,194.62,9.67690998]
[1735773300627,10.6862491,194.66,194.62,12.57690998]
[1735773301839,8.1124491,194.64,194.59,7.10260998]
[1735773302035,8.1124491,194.62,194.59,7.10260998]
[1735773302229,8.1124491,194.6,194.59,7.10260998]
[1735773302633,8.1124491,194.6,194.56,28.19861903]
[1735773302836,8.1124491,194.58,194.56,28.19861903]
[1735773303737,8.1124491,194.58,194.54,2.9]
[1735773304042,2.575,194.57,194.54,2.9]
[1735773304452,8.1124491,194.58,194.54,2.9]
[1735773304641,8.1124491,194.58,194.54,5.4753]
[1735773306136,2.5743,194.63,194.54,2.9]
[1735773306442,8.1124491,194.6,194.54,2.9]
[1735773306637,2.9,194.66,194.54,2.9]
[1735773306944,8.1124491,194.59,194.55,2.5752]
[1735773307337,10.6872491,194.59,194.54,5.4754]
[1735773307537,8.1124491,194.59,194.54,2.9]
[1735773308541,2.9,194.68,194.54,2.9]
[1735773308740,8.1124491,194.62,194.55,8.1124491]
[1735773308940,8.1124491,194.62,194.6,2.5746]
[1735773309841,8.1124491,194.62,194.52,2.9]
[1735773310037,8.1124491,194.56,194.52,2.9]
[1735773310343,8.1124491,194.56,194.53,2.5755]
[1735773310643,8.1124491,194.56,194.52,2.9]
[1735773311635,8.1124491,194.58,194.52,2.9]
[1735773312344,8.1124491,194.58,194.53,4.92581545]
[1735773312841,8.1124491,194.58,194.52,2.9]
[1735773313441,8.1124491,194.58,194.56,2.5751]
[1735773313642,8.1124491,194.58,194.52,2.9]
[1735773313843,8.1124491,194.56,194.52,2.9]
[1735773314144,8.1124491,194.58,194.52,2.9]
[1735773315049,8.1124491,194.56,194.52,2.9]
[1735773315442,8.1124491,194.56,194.53,2.5755]
[1735773315647,8.1124491,194.56,194.53,5.4755]
[1735773316547,8.1124491,194.56,194.51,2.5758]
[1735773316846,8.1124491,194.54,194.51,2.9]
[1735773318249,10.6878491,194.54,194.51,2.9]
[1735773318447,8.1124491,194.52,194.47,8.1124491]
[1735773318647,8.1124491,194.52,194.48,2.9]
[1735773318846,8.1124491,194.52,194.47,8.1124491]
[1735773319052,8.1124491,194.52,194.47,2.9]
[1735773319442,10.6881491,194.52,194.47,5.4762]
[1735773319643,10.6881491,194.52,194.47,2.5762]
[1735773319852,8.1124491,194.5,194.46,6.85783643]
[1735773320149,2.9,194.59,194.45,2.9]
[1735773320150,8.1124491,194.48,194.45,2.9]
[1735773320852,8.1124491,194.48,194.46,2.5764]
[1735773321045,8.1124491,194.5,194.45,11.0124491]
[1735773321643,8.1124491,194.5,194.47,2.5763]
[1735773323042,8.1124491,194.5,194.45,11.0124491]
[1735773323741,8.1124491,194.52,194.47,2.5763]
[1735773323943,8.1124491,194.52,194.45,11.0124491]
[1735773325147,8.1124491,194.52,194.48,2.5761]
[1735773326157,10.6881491,194.52,194.47,2.5763]
[1735773327248,8.1124491,194.52,194.47,8.1124491]
[1735773328556,8.1124491,194.52,194.49,2.576]
[1735773331956,8.1124491,194.52,194.47,8.1124491]
[1735773332157,8.1124491,194.54,194.49,8.1124491]
[1735773332357,8.1124491,194.54,194.5,2.9]
[1735773332959,8.1124491,194.56,194.5,2.9]
[1735773334061,8.1124491,194.54,194.5,2.9]
[1735773334659,8.1124491,194.54,194.5,5.4758]
[1735773335262,8.1124491,194.52,194.5,5.4758]
[1735773335457,8.1124491,194.52,194.5,2.9]
[1735773336656,10.6882491,194.52,194.5,2.9]
[1735773336860,10.6882491,194.52,194.47,5.4763]
[1735773337960,10.6882491,194.52,194.47,2.5763]
[1735773338160,10.6882491,194.52,194.47,5.4763]
[1735773338359,8.1124491,194.5,194.47,2.5763]
[1735773338660,8.1124491,194.5,194.47,2.9]
[1735773338858,10.6883491,194.5,194.47,2.9]
[1735773339660,8.1124491,194.5,194.45,2.5764]
[1735773339862,8.1124491,194.48,194.45,2.5764]
[1735773340361,10.6886491,194.48,194.44,5.4767]
[1735773342361,8.1124491,194.48,194.45,2.5765]
[1735773347368,8.1124491,194.48,194.46,2.5764]
[1735773347963,8.1124491,194.48,194.45,2.5766]
[1735773349967,8.1124491,194.48,194.46,2.5764]
[1735773351171,8.1124491,194.48,194.43,11.0124491]
[1735773351873,8.1124491,194.48,194.44,2.5767]
[1735773352071,10.6886491,194.48,194.44,2.5767]
[1735773352973,8.1124491,194.46,194.4,8.57870998]
[1735773353173,8.1124491,194.44,194.4,7.10260998]
[1735773353373,8.1124491,194.42,194.4,7.10260998]
[1735773354276,10.6894491,194.42,194.4,7.10260998]
[1735773355177,10.6894491,194.42,194.38,2.5775]
[1735773355674,8.1124491,194.42,194.38,2.5775]
[1735773357169,8.1124491,194.4,194.37,2.5776]
[1735773357369,8.1124491,194.4,194.35,2.9]
[1735773357875,8.1124491,194.4,194.36,4.93960753]
[1735773358274,8.1124491,194.4,194.36,2.5777]
[1735773358573,8.1124491,194.4,194.35,2.9]
[1735773358973,8.1124491,194.4,194.38,2.5775]
[1735773360376,8.1124491,194.42,194.4,2.5772]
[1735773360973,8.1124491,194.42,194.37,2.5776]
[1735773361172,8.1124491,194.42,194.35,11.0124491]
[1735773361377,8.1124491,194.42,194.38,4.9390443]
[1735773361576,8.1124491,194.42,194.4,2.5772]
[1735773361776,8.1124491,194.42,194.35,11.0124491]
[1735773361972,8.1124491,194.4,194.36,4.94100869]
[1735773362478,8.1124491,194.38,194.35,7.10260998]
[1735773362675,8.1124491,194.38,194.32,2.9]
[1735773363277,8.1124491,194.38,194.33,4.94343533]
[1735773363476,8.1124491,194.38,194.34,7.52133533]
[1735773363878,8.1124491,194.38,194.34,2.5779]
[1735773364179,2.578,194.35,194.3,9.68110998]
[1735773364378,8.1124491,194.33,194.3,9.68110998]
[1735773364879,8.1124491,194.33,194.3,2.5785]
[1735773365171,8.1124491,194.31,194.3,2.5785]
[1735773366069,8.1124491,194.33,194.3,2.5785]
[1735773366473,8.1124491,194.33,194.27,8.1124491]
[1735773366669,9.6244491,194.37,194.29,8.1124491]
[1735773366875,2.9,194.4,194.31,8.1124491]
[1735773367170,8.1124491,194.39,194.32,2.9]
[1735773367984,8.1124491,194.39,194.34,2.578]
[1735773368173,8.1124491,194.39,194.32,2.9]
[1735773368479,8.1124491,194.39,194.33,8.1124491]
[1735773368978,8.1124491,194.39,194.32,2.9]
[1735773369480,10.6898491,194.39,194.34,2.578]
[1735773369778,8.1124491,194.39,194.32,2.9]
[1735773370980,8.1124491,194.39,194.33,8.1124491]
[1735773371883,8.1124491,194.39,194.36,2.5777]
[1735773373180,8.1124491,194.39,194.33,8.1124491]
[1735773373378,8.1124491,194.39,194.34,2.5779]
[1735773373682,8.1124491,194.37,194.34,2.5779]
[1735773374981,8.1124491,194.35,194.31,2.5784]
[1735773375373,8.1124491,194.33,194.3,2.5785]
[1735773375984,8.1124491,194.33,194.29,2.5787]
[1735773376279,8.1124491,194.31,194.26,2.9]
[1735773377285,8.1124491,194.31,194.27,2.5788]
[1735773380288,8.1124491,194.31,194.25,11.0124491]
[1735773380486,8.1124491,194.33,194.25,11.0124491]
[1735773381289,2.5779,194.35,194.3,2.5784]
[1735773381484,8.1124491,194.34,194.27,8.1124491]
[1735773381885,8.1124491,194.34,194.3,2.5785]
[1735773383891,8.1124491,194.34,194.27,8.1124491]
[1735773384088,8.1124491,194.34,194.32,2.5782]
[1735773384281,8.1124491,194.34,194.27,8.1124491]
[1735773385088,8.1124491,194.34,194.29,2.5787]
[1735773385284,8.1124491,194.32,194.25,11.0124491]
[1735773385788,10.6907491,194.32,194.27,2.5788]
[1735773387791,10.6907491,194.32,194.25,11.0124491]
[1735773387987,10.6907491,194.32,194.28,2.5788]
[1735773388395,8.1124491,194.32,194.28,2.5788]
[1735773389893,8.1124491,194.32,194.26,2.9]
[1735773390093,8.1124491,194.34,194.27,8.1124491]
[1735773390991,8.1124491,194.34,194.32,2.5782]
[1735773391392,8.1124491,194.36,194.29,8.1124491]
[1735773392286,10.6902491,194.36,194.31,2.5784]
[1735773392889,8.1124491,194.34,194.31,2.5784]
[1735773393085,8.1124491,194.34,194.27,8.1124491]
[1735773393289,8.1124491,194.34,194.32,2.5783]
[1735773393496,8.1124491,194.34,194.27,8.1124491]
[1735773393894,8.1124491,194.32,194.29,2.5787]
[1735773394494,8.1124491,194.32,194.28,2.9]
[1735773394687,8.1124491,194.3,194.25,2.9]
[1735773395496,8.1124491,194.3,194.26,2.5791]
[1735773401401,8.1124491,194.3,194.25,2.9]
[1735773401604,8.1124491,194.32,194.25,11.0124491]
[1735773401798,8.1124491,194.32,194.26,4.9489028]
[1735773402004,8.1124491,194.32,194.28,2.5787]
[1735773402306,8.1124491,194.3,194.27,4.9489028]
[1735773402801,8.1124491,194.3,194.25,11.0124491]
[1735773403004,8.1124491,194.3,194.26,4.94971507]
[1735773403205,8.1124491,194.3,194.25,2.9]
[1735773403405,8.1124491,194.3,194.28,2.5788]
[1735773403605,8.1124491,194.3,194.25,2.9]
[1735773403801,8.1124491,194.32,194.26,4.95043858]
[1735773404001,8.1124491,194.32,194.27,4.95043858]
[1735773404410,8.1124491,194.32,194.25,11.0124491]
[1735773404612,2.5782,194.33,194.28,2.5787]
[1735773404813,8.1124491,194.31,194.28,2.5787]
[1735773407616,8.1124491,194.29,194.26,2.579]
[1735773407810,8.1124491,194.29,194.25,2.9]
[1735773408012,8.1124491,194.29,194.27,4.95528223]
[1735773408214,8.1124491,194.29,194.24,10.00260998]
[1735773408717,8.1124491,194.29,194.25,4.95529679]
[1735773409018,8.1124491,194.29,194.26,4.95529679]
[1735773409517,8.1124491,194.29,194.24,2.9]
[1735773409722,10.6911491,194.29,194.25,7.53516403]
[1735773410022,10.6911491,194.29,194.25,2.5792]
[1735773410719,8.1124491,194.29,194.23,6.8650929]
[1735773410920,8.1124491,194.25,194.24,2.5793]
[1735773411122,8.1124491,194.25,194.22,28.19861903]
[1735773411423,8.1124491,194.25,194.22,7.10260998]
[1735773412325,8.1124491,194.25,194.21,2.9]
[1735773412528,8.1124491,194.25,194.22,2.5796]
[1735773413327,8.1124491,194.27,194.21,2.9]
[1735773413521,8.1124491,194.27,194.23,4.95391976]
[1735773413720,8.1124491,194.27,194.21,2.9]
[1735773414123,8.1124491,194.27,194.22,4.95394144]
[1735773414321,8.1124491,194.27,194.23,4.95394144]
[1735773414523,8.1124491,194.27,194.25,2.5791]
[1735773418429,8.1124491,194.27,194.21,2.9]
[1735773418630,8.1124491,194.27,194.23,2.5794]
[1735773419627,8.1124491,194.27,194.24,4.95941007]
[1735773419928,8.1124491,194.27,194.24,2.5794]
[1735773421217,8.1124491,194.27,194.25,2.5792]
[1735773421828,11.0788491,194.3,194.24,8.1124491]
[1735773422222,11.0788491,194.3,194.25,4.96008279]
[1735773422523,11.0788491,194.3,194.27,2.5789]
[1735773422724,8.1124491,194.28,194.22,15.21505908]
[1735773422924,8.1124491,194.28,194.25,2.5792]
[1735773423121,8.1124491,194.26,194.25,2.5792]
[1735773425225,8.1124491,194.28,194.25,2.5792]
[1735773425430,11.0788491,194.3,194.26,2.579]
[1735773425626,8.1124491,194.29,194.26,2.579]
[1735773427229,8.1124491,194.32,194.24,8.1124491]
[1735773427430,1.5376,194.4,194.25,4.95961127]
[1735773427431,8.1124491,194.3,194.25,4.95961127]
[1735773427829,8.1124491,194.3,194.26,4.95961127]
[1735773428133,8.1124491,194.3,194.23,7.10260998]
[1735773428337,8.1124491,194.3,194.24,8.1124491]
[1735773428633,8.1124491,194.32,194.24,8.1124491]
[1735773428834,8.1124491,194.32,194.3,2.5784]
[1735773429632,8.1124491,194.32,194.27,2.9]
[1735773430032,8.1124491,194.36,194.28,12.1693776]
[1735773430331,8.1124491,194.36,194.29,4.0569285]